fUSD/lending_fUSD_20250204
["ID","MTS","AMOUNT","RATE_DAILY","PERIOD"]
[351622244,1738667470557,-500.0,9.857e-05,2]
[351622245,1738667470567,-500.0,9.857e-05,2]
[351622246,1738667470577,-500.0,9.857e-05,2]
[351622247,1738667470586,-500.0,9.857e-05,2]
[351622248,1738667470595,-500.0,9.857e-05,2]
[351622249,1738667470605,-500.0,9.857e-05,2]
[351622250,1738667470615,-500.0,9.857e-05,2]
[351622251,1738667470625,-500.0,9.857e-05,2]
[351622252,1738667470634,-628.3,9.857e-05,2]
[351622253,1738667470643,-500.0,9.857e-05,2]
[351622254,1738667470653,-500.0,9.857e-05,2]
[351622255,1738667470662,-500.0,9.857e-05,2]
[351622256,1738667470671,-500.0,9.857e-05,2]
[351622257,1738667470680,-500.0,9.857e-05,2]
[351622258,1738667470690,-500.0,9.857e-05,2]
[351622259,1738667470700,-500.0,9.857e-05,2]
[351622260,1738667470710,-676.5,9.857e-05,2]
[351622261,1738667470718,-500.0,9.857e-05,2]
[351622262,1738667470731,-650.5,9.857e-05,2]
[351622263,1738667470740,-500.0,9.857e-05,2]
[351622264,1738667470750,-500.0,9.857e-05,2]
[351622265,1738667470759,-500.0,9.857e-05,2]
[351622266,1738667470769,-500.0,9.857e-05,2]
[351622267,1738667470778,-1034.12,9.857e-05,2]
[351622268,1738667470788,-500.0,9.857e-05,2]
[351622269,1738667470798,-500.0,9.857e-05,2]
[351622270,1738667470808,-500.0,9.857e-05,2]
[351622271,1738667470818,-500.0,9.857e-05,2]
[351622272,1738667470828,-500.0,9.857e-05,2]
[351622273,1738667470837,-500.0,9.857e-05,2]
[351622274,1738667470847,-629.6,9.857e-05,2]
[351622275,1738667470857,-500.0,9.857e-05,2]
[351622276,1738667470866,-591.63,9.857e-05,2]
[351622277,1738667470876,-500.0,9.857e-05,2]
[351622278,1738667470886,-500.0,9.857e-05,2]
[351622279,1738667470895,-514.54,9.857e-05,2]
[351622280,1738667470905,-627.41,9.857e-05,2]
[351622281,1738667470915,-500.0,9.857e-05,2]
[351622282,1738667470925,-500.0,9.857e-05,2]
[351622283,1738667470935,-936.6,9.857e-05,2]
[351622284,1738667470945,-901.83,9.857e-05,2]
[351622285,1738667470955,-657.01,9.857e-05,2]
[351622286,1738667470964,-500.0,9.857e-05,2]
[351622287,1738667470975,-1347.54,9.857e-05,2]
[351622288,1738667470984,-500.0,9.857e-05,2]
[351622289,1738667470994,-500.0,9.857e-05,2]
[351622290,1738667471004,-500.0,9.857e-05,2]
[351622291,1738667471014,-821.28,9.857e-05,2]
[351622292,1738667471023,-766.46,9.857e-05,2]
[351622293,1738667471033,-548.84,9.857e-05,2]
[351622294,1738667471043,-1067.5,9.857e-05,2]
[351622295,1738667471053,-567.98,9.857e-05,2]
[351622296,1738667471062,-1206.36,9.857e-05,2]
[351622297,1738667471073,-789.24,9.857e-05,2]
[351622298,1738667471083,-719.05,9.857e-05,2]
[351622299,1738667471093,-500.0,9.857e-05,2]
[351622300,1738667471103,-1125.83,9.857e-05,2]
[351622301,1738667471222,-500.0,9.857e-05,2]
[351622302,1738667471242,-710.7,9.857e-05,2]
[351622303,1738667471252,-1002.01,9.857e-05,2]
[351622304,1738667471262,-500.0,9.857e-05,2]
[351622305,1738667471272,-500.0,9.857e-05,2]
[351622306,1738667471282,-1399.32,9.857e-05,2]
[351622307,1738667471292,-500.0,9.857e-05,2]
[351622308,1738667471302,-500.0,9.857e-05,2]
[351622309,1738667471311,-889.43,9.857e-05,2]
[351622310,1738667471321,-1705.36,9.857e-05,2]
[351622311,1738667471331,-500.0,9.857e-05,2]
[351622312,1738667471341,-500.0,9.857e-05,2]
[351622313,1738667471350,-500.0,9.857e-05,2]
[351622314,1738667471361,-973.3,9.857e-05,2]
[351622315,1738667471371,-627.32,9.857e-05,2]
[351622316,1738667471380,-500.0,9.857e-05,2]
[351622317,1738667471389,-500.0,9.857e-05,2]
[351622318,1738667471400,-500.0,9.857e-05,2]
[351622319,1738667471410,-1050.31,9.857e-05,2]
[351622320,1738667471419,-500.0,9.857e-05,2]
[351622321,1738667471430,-853.18,9.857e-05,2]
[351622322,1738667471440,-508.75,9.857e-05,2]
[351622323,1738667471450,-794.56,9.857e-05,2]
[351622324,1738667471459,-501.04,9.857e-05,2]
[351622325,1738667471469,-500.0,9.857e-05,2]
[351622326,1738667471480,-500.0,9.857e-05,2]
[351622327,1738667471490,-1140.49,9.857e-05,2]
[351622328,1738667471500,-989.2,9.857e-05,2]
[351622329,1738667471510,-500.0,9.857e-05,2]
[351622330,1738667471522,-500.0,9.857e-05,2]
[351622331,1738667471531,-500.0,9.857e-05,2]
[351622332,1738667471544,-500.0,9.857e-05,2]
[351622333,1738667471554,-1075.23,9.857e-05,2]
[351622334,1738667471564,-500.0,9.857e-05,2]
[351622335,1738667471574,-774.53,9.857e-05,2]
[351622336,1738667471584,-1624.68,9.857e-05,2]
[351622337,1738667471594,-648.91,9.857e-05,2]
[351622338,1738667471604,-1182.58,9.857e-05,2]
[351622339,1738667471614,-500.0,9.857e-05,2]
[351622340,1738667471623,-1295.83,9.857e-05,2]
[351622341,1738667471632,-553.29,9.857e-05,2]
[351622342,1738667471642,-500.0,9.857e-05,2]
[351622343,1738667471651,-658.47,9.857e-05,2]
[351622344,1738667471661,-500.0,9.857e-05,2]
[351622345,1738667471671,-1241.19,9.857e-05,2]
[351622346,1738667471680,-1520.74,9.857e-05,2]
[351622347,1738667471690,-960.33,9.857e-05,2]
[351622348,1738667471699,-500.0,9.857e-05,2]
[351622349,1738667471709,-707.2,9.857e-05,2]
[351622350,1738667471719,-1221.09,9.857e-05,2]
[351622351,1738667471730,-500.0,9.857e-05,2]
[351622352,1738667471740,-679.07,9.857e-05,2]
[351622353,1738667471751,-1350.28,9.857e-05,2]
[351622354,1738667471760,-500.0,9.857e-05,2]
[351622355,1738667471770,-500.0,9.857e-05,2]
[351622356,1738667471780,-562.23,9.857e-05,2]
[351622357,1738667471790,-500.0,9.857e-05,2]
[351622358,1738667471801,-1580.8,9.857e-05,2]
[351622359,1738667471811,-508.98,9.857e-05,2]
[351622360,1738667471821,-1058.05,9.857e-05,2]
[351622361,1738667471831,-500.0,9.857e-05,2]
[351622362,1738667471843,-1211.28,9.857e-05,2]
[351622363,1738667471853,-738.97,9.857e-05,2]
[351622364,1738667471863,-500.0,9.857e-05,2]
[351622365,1738667471873,-508.24,9.857e-05,2]
[351622366,1738667471883,-500.0,9.857e-05,2]
[351622367,1738667471893,-1081.83,9.857e-05,2]
[351622368,1738667471903,-500.0,9.857e-05,2]
[351622369,1738667471914,-500.0,9.857e-05,2]
[351622370,1738667471924,-1843.73,9.857e-05,2]
[351622371,1738667471933,-500.0,9.857e-05,2]
[351622372,1738667471944,-500.0,9.857e-05,2]
[351622373,1738667471954,-300.0,9.9e-05,3]
[351622374,1738667471964,-653249.7472218,9.985e-05,2]
[351622375,1738667472573,-500.0,8.897e-05,2]
[351622376,1738667472583,-42173.23798974,9.985e-05,2]
[351622377,1738667472593,-698.82,9.989e-05,2]
[351622378,1738667472602,-547.15,9.989e-05,2]
[351622379,1738667472612,-201.0,9.99e-05,2]
[351622380,1738667472622,-205.0,9.99e-05,2]
[351622381,1738667472632,-50000.0,9.99e-05,2]
[351622382,1738667472641,-593.13,9.993e-05,2]
[351622383,1738667472651,-500.0,9.993e-05,2]
[351622384,1738667472660,-500.0,9.993e-05,2]
[351622385,1738667472670,-500.0,9.993e-05,2]
[351622386,1738667472680,-500.0,9.993e-05,2]
[351622387,1738667472689,-500.0,9.993e-05,2]
[351622388,1738667472699,-500.0,9.993e-05,2]
[351622389,1738667472709,-546.1,9.993e-05,2]
[351622390,1738667472719,-500.0,9.993e-05,2]
[351622391,1738667472732,-500.0,9.993e-05,2]
[351622392,1738667472742,-500.0,9.993e-05,2]
[351622393,1738667472753,-527.43,9.993e-05,2]
[351622394,1738667472763,-646.54,9.993e-05,2]
[351622395,1738667472773,-500.0,9.993e-05,2]
[351622396,1738667472783,-500.0,9.993e-05,2]
[351622397,1738667472793,-546.74,9.993e-05,2]
[351622398,1738667472803,-500.0,9.993e-05,2]
[351622399,1738667472813,-560.89,9.993e-05,2]
[351622400,1738667472823,-806.65,9.993e-05,2]
[351622401,1738667472832,-916.85,9.993e-05,2]
[351622402,1738667472842,-656.328528,9.993e-05,2]
[351622403,1738667472853,-154.401312,9.993e-05,2]
[351622404,1738667472863,-674.34,9.993e-05,2]
[351622405,1738667472873,-500.0,9.993e-05,2]
[351622406,1738667472884,-830.84,9.993e-05,2]
[351622407,1738667472894,-500.0,9.993e-05,2]
[351622408,1738667472904,-735.59,9.993e-05,2]
[351622409,1738667472914,-1020.31,9.993e-05,2]
[351622410,1738667472923,-678.3,9.993e-05,2]
[351622411,1738667472933,-500.0,9.993e-05,2]
[351622412,1738667472943,-670.662005,9.993e-05,2]
[351622413,1738667472953,-761.16,9.993e-05,2]
[351622414,1738667472963,-1191.92,9.993e-05,2]
[351622415,1738667472973,-842.81,9.993e-05,2]
[351622416,1738667472984,-501.19,9.993e-05,2]
[351622417,1738667472994,-1436.96,9.993e-05,2]
[351622418,1738667473004,-1098.86,9.993e-05,2]
[351622419,1738667473015,-1587.17,9.993e-05,2]
[351622420,1738667473025,-555.35,9.993e-05,2]
[351622421,1738667473036,-3586.6,9.993e-05,2]
[351622422,1738667473046,-826.45,9.993e-05,2]
[351622423,1738667473056,-874.52,9.993e-05,2]
[351622424,1738667473066,-735.1,9.993e-05,2]
[351622425,1738667473076,-500.0,9.993e-05,2]
[351622426,1738667473087,-1133.01,9.993e-05,2]
[351622427,1738667473097,-1079.23,9.993e-05,2]
[351622428,1738667473107,-1605.3,9.993e-05,2]
[351622429,1738667473116,-566.45,9.993e-05,2]
[351622430,1738667473127,-1195.29,9.993e-05,2]
[351622431,1738667473137,-528.44,9.993e-05,2]
[351622432,1738667473146,-1670.85,9.993e-05,2]
[351622433,1738667473157,-1128.85,9.993e-05,2]
[351622434,1738667473166,-2377.98,9.993e-05,2]
[351622435,1738667473176,-500.0,9.993e-05,2]
[351622436,1738667473186,-742.14,9.993e-05,2]
[351622437,1738667473195,-704.68,9.993e-05,2]
[351622438,1738667473205,-1562.25,9.993e-05,2]
[351622439,1738667473215,-996.25,9.993e-05,2]
[351622440,1738667473226,-752.83,9.993e-05,2]
[351622441,1738667473235,-747.44,9.993e-05,2]
[351622442,1738667473245,-1009.27,9.993e-05,2]
[351622443,1738667473254,-950.45,9.993e-05,2]
[351622444,1738667473264,-1760.82,9.993e-05,2]
[351622445,1738667473274,-579.06,9.993e-05,2]
[351622446,1738667473560,-1336.98,9.993e-05,2]
[351622447,1738667473590,-1190.29,9.993e-05,2]
[351622448,1738667473602,-1037.35,9.993e-05,2]
[351622449,1738667473613,-975.36,9.993e-05,2]
[351622450,1738667473624,-1052.38,9.993e-05,2]
[351622451,1738667473635,-500.0,9.993e-05,2]
[351622452,1738667473647,-1172.6,9.993e-05,2]
[351622453,1738667473658,-500.0,9.993e-05,2]
[351622454,1738667473670,-553.74,9.993e-05,2]
[351622455,1738667473680,-893.18,9.993e-05,2]
[351622456,1738667473691,-619.3,9.993e-05,2]
[351622457,1738667473702,-900.81,9.993e-05,2]
[351622458,1738667473712,-793.87,9.993e-05,2]
[351622459,1738667473722,-567.81,9.993e-05,2]
[351622460,1738667473738,-500.0,9.993e-05,2]
[351622461,1738667473748,-608.06,9.993e-05,2]
[351622462,1738667473758,-542.59,9.993e-05,2]
[351622463,1738667473769,-1088.9,9.993e-05,2]
[351622464,1738667473778,-500.0,9.993e-05,2]
[351622465,1738667473788,-500.0,9.994e-05,2]
[351622466,1738667473799,-500.0,9.994e-05,2]
[351622467,1738667473808,-500.0,9.994e-05,2]
[351622468,1738667473818,-649.36,9.994e-05,2]
[351622469,1738667473828,-500.0,9.994e-05,2]
[351622470,1738667473838,-500.0,9.994e-05,2]
[351622471,1738667473848,-500.0,9.994e-05,2]
[351622472,1738667473859,-500.0,9.994e-05,2]
[351622473,1738667473869,-484.40339678,9.994e-05,2]
[351622474,1738667473880,-664.96,9.994e-05,2]
[351622475,1738667473891,-500.0,9.994e-05,2]
[351622476,1738667473901,-500.0,9.994e-05,2]
[351622477,1738667473911,-500.0,9.994e-05,2]
[351622478,1738667473921,-500.0,9.994e-05,2]
[351622479,1738667473931,-595.16,9.994e-05,2]
[351622480,1738667473941,-568.57,9.994e-05,2]
[351622481,1738667473951,-500.0,9.994e-05,2]
[351622482,1738667473962,-500.0,9.994e-05,2]
[351622483,1738667473972,-789.04,9.994e-05,2]
[351622484,1738667473985,-500.0,9.994e-05,2]
[351622485,1738667473995,-500.0,9.994e-05,2]
[351622486,1738667474007,-500.0,9.994e-05,2]
[351622487,1738667474016,-500.0,9.994e-05,2]
[351622488,1738667474026,-500.0,9.994e-05,2]
[351622489,1738667474036,-274.15721334,9.994e-05,2]
[351622490,1738667474046,-544.55,9.994e-05,2]
[351622491,1738667474063,-502.21,9.994e-05,2]
[351622492,1738667474073,-706.43,9.994e-05,2]
[351622493,1738667474083,-500.0,9.994e-05,2]
[351622494,1738667474094,-500.0,9.994e-05,2]
[351622495,1738667474104,-500.0,9.994e-05,2]
[351622496,1738667474113,-500.0,9.994e-05,2]
[351622497,1738667474124,-500.0,9.994e-05,2]
[351622498,1738667474134,-574.13,9.994e-05,2]
[351622499,1738667474144,-500.0,9.994e-05,2]
[351622500,1738667474153,-562.82,9.994e-05,2]
[351622501,1738667474163,-581.83,9.994e-05,2]
[351622502,1738667474173,-520.24,9.994e-05,2]
[351622503,1738667474182,-500.0,9.994e-05,2]
[351622504,1738667474192,-500.0,9.994e-05,2]
[351622505,1738667474201,-587.74,9.994e-05,2]
[351622506,1738667474211,-500.0,9.994e-05,2]
[351622507,1738667474220,-500.0,9.994e-05,2]
[351622508,1738667474233,-604.38,9.994e-05,2]
[351622509,1738667474243,-500.0,9.994e-05,2]
[351622510,1738667474254,-500.0,9.994e-05,2]
[351622511,1738667474264,-500.0,9.994e-05,2]
[351622512,1738667474273,-500.0,9.994e-05,2]
[351622513,1738667474283,-500.0,9.994e-05,2]
[351622514,1738667474293,-500.0,9.994e-05,2]
[351622515,1738667474303,-500.0,9.994e-05,2]
[351622516,1738667474314,-629.95442315,9.994e-05,2]
[351622517,1738667474325,-517.16,9.994e-05,2]
[351622518,1738667474335,-286.72,9.994e-05,2]
[351622519,1738667474345,-500.0,9.994e-05,2]
[351622520,1738667474354,-500.0,9.994e-05,2]
[351622521,1738667474364,-500.0,9.994e-05,2]
[351622522,1738667474373,-500.0,9.994e-05,2]
[351622523,1738667474384,-546.35,9.994e-05,2]
[351622524,1738667474394,-595.56,9.994e-05,2]
[351622525,1738667474403,-500.0,9.994e-05,2]
[351622526,1738667474412,-837.13,9.994e-05,2]
[351622527,1738667474422,-500.0,9.994e-05,2]
[351622528,1738667474432,-500.0,9.994e-05,2]
[351622529,1738667474442,-500.0,9.994e-05,2]
[351622530,1738667474451,-500.0,9.994e-05,2]
[351622531,1738667474460,-500.0,9.994e-05,2]
[351622532,1738667474470,-500.0,9.994e-05,2]
[351622533,1738667474482,-500.0,9.994e-05,2]
[351622534,1738667474492,-744.25,9.994e-05,2]
[351622535,1738667474502,-500.0,9.994e-05,2]
[351622536,1738667474511,-479.53352571,9.994e-05,2]
[351622537,1738667474525,-500.0,9.994e-05,2]
[351622538,1738667474534,-500.0,9.994e-05,2]
[351622539,1738667474544,-500.0,9.994e-05,2]
[351622540,1738667474554,-500.0,9.994e-05,2]
[351622541,1738667474564,-500.0,9.994e-05,2]
[351622542,1738667474574,-500.0,9.994e-05,2]
[351622543,1738667474584,-500.0,9.994e-05,2]
[351622544,1738667474596,-500.0,9.994e-05,2]
[351622545,1738667474606,-500.0,9.994e-05,2]
[351622546,1738667474615,-518.9,9.994e-05,2]
[351622547,1738667474625,-607.74,9.994e-05,2]
[351622548,1738667474636,-610.12,9.994e-05,2]
[351622549,1738667474648,-500.0,9.994e-05,2]
[351622550,1738667474659,-500.0,9.994e-05,2]
[351622551,1738667474671,-559.08,9.994e-05,2]
[351622552,1738667474682,-500.0,9.994e-05,2]
[351622553,1738667474694,-500.0,9.994e-05,2]
[351622554,1738667474706,-500.0,9.994e-05,2]
[351622555,1738667474717,-500.0,9.994e-05,2]
[351622556,1738667474734,-500.0,9.994e-05,2]
[351622557,1738667474744,-500.0,9.994e-05,2]
[351622558,1738667474755,-500.0,9.994e-05,2]
[351622559,1738667474766,-309.38424796,9.994e-05,2]
[351622560,1738667474777,-628.3,9.994e-05,2]
[351622561,1738667474788,-500.0,9.994e-05,2]
[351622562,1738667474799,-500.0,9.994e-05,2]
[351622563,1738667474810,-500.0,9.994e-05,2]
[351622564,1738667474821,-500.0,9.994e-05,2]
[351622565,1738667474832,-500.0,9.994e-05,2]
[351622566,1738667474843,-500.0,9.994e-05,2]
[351622567,1738667474856,-500.0,9.994e-05,2]
[351622568,1738667474867,-676.5,9.994e-05,2]
[351622569,1738667474878,-500.0,9.994e-05,2]
[351622570,1738667474888,-650.5,9.994e-05,2]
[351622571,1738667474899,-500.0,9.994e-05,2]
[351622572,1738667474910,-500.0,9.994e-05,2]
[351622573,1738667474921,-500.0,9.994e-05,2]
[351622574,1738667474932,-500.0,9.994e-05,2]
[351622575,1738667474942,-1034.12,9.994e-05,2]
[351622576,1738667474953,-500.0,9.994e-05,2]
[351622577,1738667474964,-500.0,9.994e-05,2]
[351622578,1738667474976,-500.0,9.994e-05,2]
[351622579,1738667474987,-500.0,9.994e-05,2]
[351622580,1738667474997,-500.0,9.994e-05,2]
[351622581,1738667475007,-534.74867977,9.994e-05,2]
[351622582,1738667475017,-629.6,9.994e-05,2]
[351622583,1738667475028,-500.0,9.994e-05,2]
[351622584,1738667475037,-591.63,9.994e-05,2]
[351622585,1738667475047,-500.0,9.994e-05,2]
[351622586,1738667475062,-500.0,9.994e-05,2]
[351622587,1738667475072,-514.54,9.994e-05,2]
[351622588,1738667475083,-627.41,9.994e-05,2]
[351622589,1738667475092,-500.0,9.994e-05,2]
[351622590,1738667475103,-500.0,9.994e-05,2]
[351622591,1738667475113,-936.6,9.994e-05,2]
[351622592,1738667475123,-901.83,9.994e-05,2]
[351622593,1738667475134,-657.01,9.994e-05,2]
[351622594,1738667475144,-500.0,9.994e-05,2]
[351622595,1738667475154,-1347.54,9.994e-05,2]
[351622596,1738667475164,-500.0,9.994e-05,2]
[351622597,1738667475173,-500.0,9.994e-05,2]
[351622598,1738667475183,-500.0,9.994e-05,2]
[351622599,1738667475193,-821.28,9.994e-05,2]
[351622600,1738667475203,-766.46,9.994e-05,2]
[351622601,1738667475213,-548.84,9.994e-05,2]
[351622602,1738667475223,-1067.5,9.994e-05,2]
[351622603,1738667475237,-567.98,9.994e-05,2]
[351622604,1738667475246,-1206.36,9.994e-05,2]
[351622605,1738667475255,-789.24,9.994e-05,2]
[351622606,1738667475265,-719.05,9.994e-05,2]
[351622607,1738667475275,-500.0,9.994e-05,2]
[351622608,1738667475284,-1125.83,9.994e-05,2]
[351622609,1738667475294,-500.0,9.994e-05,2]
[351622610,1738667475304,-710.7,9.994e-05,2]
[351622611,1738667475313,-1002.01,9.994e-05,2]
[351622612,1738667475323,-500.0,9.994e-05,2]
[351622613,1738667475332,-500.0,9.994e-05,2]
[351622614,1738667475342,-1399.32,9.994e-05,2]
[351622615,1738667475352,-500.0,9.994e-05,2]
[351622616,1738667475362,-500.0,9.994e-05,2]
[351622617,1738667475371,-889.43,9.994e-05,2]
[351622618,1738667475382,-1705.36,9.994e-05,2]
[351622619,1738667475391,-500.0,9.994e-05,2]
[351622620,1738667475400,-500.0,9.994e-05,2]
[351622621,1738667475410,-500.0,9.994e-05,2]
[351622622,1738667475420,-973.3,9.994e-05,2]
[351622623,1738667475430,-627.32,9.994e-05,2]
[351622624,1738667475440,-500.0,9.994e-05,2]
[351622625,1738667475449,-500.0,9.994e-05,2]
[351622626,1738667475459,-500.0,9.994e-05,2]
[351622627,1738667475469,-1050.31,9.994e-05,2]
[351622628,1738667475483,-500.0,9.994e-05,2]
[351622629,1738667475494,-853.18,9.994e-05,2]
[351622630,1738667475504,-508.75,9.994e-05,2]
[351622631,1738667475515,-794.56,9.994e-05,2]
[351622632,1738667475526,-501.04,9.994e-05,2]
[351622633,1738667475537,-500.0,9.994e-05,2]
[351622634,1738667475548,-500.0,9.994e-05,2]
[351622635,1738667475558,-1140.49,9.994e-05,2]
[351622636,1738667475568,-989.2,9.994e-05,2]
[351622637,1738667475578,-500.0,9.994e-05,2]
[351622638,1738667475588,-500.0,9.994e-05,2]
[351622639,1738667475597,-500.0,9.994e-05,2]
[351622640,1738667475610,-500.0,9.994e-05,2]
[351622641,1738667475620,-1075.23,9.994e-05,2]
[351622642,1738667475630,-500.0,9.994e-05,2]
[351622643,1738667475639,-774.53,9.994e-05,2]
[351622644,1738667475648,-1624.68,9.994e-05,2]
[351622645,1738667475658,-648.91,9.994e-05,2]
[351622646,1738667475667,-1182.58,9.994e-05,2]
[351622647,1738667475677,-500.0,9.994e-05,2]
[351622648,1738667475687,-1295.83,9.994e-05,2]
[351622649,1738667475697,-553.29,9.994e-05,2]
[351622650,1738667475707,-658.47,9.994e-05,2]
[351622651,1738667475717,-500.0,9.994e-05,2]
[351622652,1738667475727,-500.0,9.994e-05,2]
[351622653,1738667475737,-1241.19,9.994e-05,2]
[351622654,1738667475747,-1520.74,9.994e-05,2]
[351622655,1738667475756,-960.33,9.994e-05,2]
[351622656,1738667475765,-500.0,9.994e-05,2]
[351622657,1738667475775,-707.2,9.994e-05,2]
[351622658,1738667475784,-1221.09,9.994e-05,2]
[351622659,1738667475793,-500.0,9.994e-05,2]
[351622660,1738667475803,-679.07,9.994e-05,2]
[351622661,1738667475813,-1350.28,9.994e-05,2]
[351622662,1738667475822,-360.56,9.994e-05,2]
[351622663,1738667475831,-500.0,9.994e-05,2]
[351622664,1738667475841,-562.23,9.994e-05,2]
[351622665,1738667475850,-500.0,9.994e-05,2]
[351622666,1738667475860,-1580.8,9.994e-05,2]
[351622667,1738667475869,-508.98,9.994e-05,2]
[351622668,1738667475879,-1058.05,9.994e-05,2]
[351622669,1738667475889,-500.0,9.994e-05,2]
[351622670,1738667475899,-1211.28,9.994e-05,2]
[351622671,1738667475908,-738.97,9.994e-05,2]
[351622672,1738667475918,-500.0,9.994e-05,2]
[351622673,1738667475927,-508.24,9.994e-05,2]
[351622674,1738667475936,-500.0,9.994e-05,2]
[351622675,1738667475947,-1081.83,9.994e-05,2]
[351622676,1738667475957,-500.0,9.994e-05,2]
[351622677,1738667475968,-500.0,9.994e-05,2]
[351622678,1738667475981,-1843.73,9.994e-05,2]
[351622679,1738667475991,-500.0,9.994e-05,2]
[351622680,1738667476001,-500.0,9.994e-05,2]
[351622681,1738667476011,-166.665702,9.998e-05,2]
[351622682,1738667476021,-204.0,9.998e-05,2]
[351622683,1738667476031,-204.0,9.998e-05,2]
[351622684,1738667476041,-204.0,9.998e-05,2]
[351622685,1738667476051,-204.0,9.998e-05,2]
[351622686,1738667476061,-204.0,9.998e-05,2]
[351622687,1738667476071,-204.0,9.998e-05,2]
[351622688,1738667476080,-204.0,9.998e-05,2]
[351622689,1738667476157,-207.0,9.998e-05,2]
[351622690,1738667476167,-207.0,9.998e-05,2]
[351622691,1738667476177,-207.0,9.998e-05,2]
[351622692,1738667476187,-207.0,9.998e-05,2]
[351622693,1738667476197,-207.0,9.998e-05,2]
[351622694,1738667476206,-207.0,9.998e-05,2]
[351622695,1738667476215,-207.0,9.998e-05,2]
[351622696,1738667476226,-201.0,9.998e-05,2]
[351622697,1738667476239,-201.0,9.998e-05,2]
[351622698,1738667476248,-201.0,9.998e-05,2]
[351622699,1738667476257,-201.0,9.998e-05,2]
[351622700,1738667476267,-201.0,9.998e-05,2]
[351622701,1738667476277,-201.0,9.998e-05,2]
[351622702,1738667476287,-201.0,9.998e-05,2]
[351622703,1738667476297,-201.0,9.998e-05,2]
[351622704,1738667476306,-201.0,9.998e-05,2]
[351622705,1738667476316,-201.0,9.998e-05,2]
[351622706,1738667476325,-201.0,9.998e-05,2]
[351622707,1738667476334,-201.0,9.998e-05,2]
[351622708,1738667476343,-201.0,9.998e-05,2]
[351622709,1738667476353,-201.0,9.998e-05,2]
[351622710,1738667476363,-205.0,9.998e-05,2]
[351622711,1738667476372,-205.0,9.998e-05,2]
[351622712,1738667476382,-205.0,9.998e-05,2]
[351622713,1738667476391,-205.0,9.998e-05,2]
[351622714,1738667476401,-205.0,9.998e-05,2]
[351622715,1738667476411,-205.0,9.998e-05,2]
[351622716,1738667476420,-205.0,9.998e-05,2]
[351622717,1738667476429,-205.0,9.998e-05,2]
[351622718,1738667476439,-205.0,9.998e-05,2]
[351622719,1738667476448,-205.0,9.998e-05,2]
[351622720,1738667476457,-205.0,9.998e-05,2]
[351622721,1738667476467,-205.0,9.998e-05,2]
[351622722,1738667476479,-205.0,9.998e-05,2]
[351622723,1738667476489,-205.0,9.998e-05,2]
[351622724,1738667476498,-205.0,9.998e-05,2]
[351622725,1738667476507,-205.0,9.998e-05,2]
[351622726,1738667476518,-205.0,9.998e-05,2]
[351622727,1738667476530,-205.0,9.998e-05,2]
[351622728,1738667476540,-205.0,9.998e-05,2]
[351622729,1738667476550,-205.0,9.998e-05,2]
[351622730,1738667476560,-205.0,9.998e-05,2]
[351622731,1738667476571,-205.0,9.998e-05,2]
[351622732,1738667476581,-205.0,9.998e-05,2]
[351622733,1738667476591,-205.0,9.998e-05,2]
[351622734,1738667476601,-500.0,9.999e-05,2]
[351622735,1738667476611,-1675.60129033,0.0001,2]
[351622736,1738667476622,-83606.79887385,0.0001,2]
[351622737,1738667476638,-5191.10090025,0.0001,2]
[351622738,1738667476649,-672.7386924,0.0001,2]
[351622739,1738667476661,-1432.13,0.0001,2]
[351622740,1738667477025,-500.17683862,8.897e-05,2]
[351622741,1738667477035,-947.87,8.897e-05,2]
[351622742,1738667477044,-500.0,8.897e-05,2]
[351622743,1738667477053,-947.87,9.034e-05,2]